fUST/lending_fUST_20241229
["ID","MTS","AMOUNT","RATE_DAILY","PERIOD"]
[347025892,1735474240142,-500.0,9.524e-05,2]
[347025893,1735474240151,-526.46437524,9.524e-05,2]
[347025894,1735474240160,-500.0,9.524e-05,2]
[347025895,1735474240169,-500.0,9.524e-05,2]
[347025896,1735474240178,-500.0,9.524e-05,2]
[347025897,1735474240188,-500.0,9.524e-05,2]
[347025898,1735474240197,-500.0,9.524e-05,2]
[347025899,1735474240207,-429.48,9.524e-05,2]
[347025900,1735474240216,-500.0,9.524e-05,2]
[347025901,1735474240225,-500.0,9.524e-05,2]
[347025902,1735474240235,-500.0,9.524e-05,2]
[347025903,1735474240245,-500.0,9.524e-05,2]
[347025904,1735474240255,-500.0,9.524e-05,2]
[347025905,1735474240265,-500.0,9.524e-05,2]
[347025906,1735474240274,-500.0,9.524e-05,2]
[347025907,1735474240283,-500.0,9.524e-05,2]
[347025908,1735474240293,-500.0,9.524e-05,2]
[347025909,1735474240302,-500.0,9.524e-05,2]
[347025910,1735474240312,-500.0,9.524e-05,2]
[347025911,1735474240321,-500.0,9.524e-05,2]
[347025912,1735474240331,-500.0,9.524e-05,2]
[347025913,1735474240340,-500.0,9.524e-05,2]
[347025914,1735474240350,-500.0,9.524e-05,2]
[347025915,1735474240359,-1874.55,9.524e-05,2]
[347025916,1735474240369,-500.0,9.524e-05,2]
[347025917,1735474240378,-500.0,9.524e-05,2]
[347025918,1735474240387,-500.0,9.524e-05,2]
[347025919,1735474240396,-282.42687449,9.524e-05,2]
[347025920,1735474240406,-500.0,9.524e-05,2]
[347025921,1735474240416,-500.0,9.524e-05,2]
[347025922,1735474240425,-500.0,9.524e-05,2]
[347025923,1735474240517,-500.0,9.524e-05,2]
[347025924,1735474240527,-500.0,9.524e-05,2]
[347025925,1735474240537,-970.15,9.524e-05,2]
[347025926,1735474240546,-500.0,9.524e-05,2]
[347025927,1735474240556,-500.0,9.524e-05,2]
[347025928,1735474240565,-500.0,9.524e-05,2]
[347025929,1735474240574,-187.60993535,9.525e-05,2]
[347025930,1735474240584,-970.15,9.526e-05,2]
[347025931,1735474240593,-500.0,9.526e-05,2]
[347025932,1735474240602,-500.0,9.527e-05,2]
[347025933,1735474240611,-3460.74,9.527e-05,2]
[347025934,1735474240621,-3670.48,9.528e-05,2]
[347025935,1735474240631,-500.0,9.796e-05,2]
[347025936,1735474240639,-1284.79,9.796e-05,2]
[347025937,1735474240649,-522.28,9.796e-05,2]
[347025938,1735474240658,-500.0,9.797e-05,2]
[347025939,1735474240668,-500.0,9.797e-05,2]
[347025940,1735474240677,-500.0,9.797e-05,2]
[347025941,1735474240686,-500.0,9.797e-05,2]
[347025942,1735474240696,-500.0,9.797e-05,2]
[347025943,1735474240705,-500.0,9.797e-05,2]
[347025944,1735474240715,-500.0,9.797e-05,2]
[347025945,1735474240725,-500.0,9.797e-05,2]
[347025946,1735474240734,-255.50589953,9.797e-05,2]
[347025947,1735474240744,-500.0,9.797e-05,2]
[347025948,1735474240753,-649.65666777,9.797e-05,2]
[347025949,1735474240767,-500.0,9.797e-05,2]
[347025950,1735474240776,-500.0,9.797e-05,2]
[347025951,1735474240785,-500.0,9.797e-05,2]
[347025952,1735474240795,-500.0,9.797e-05,2]
[347025953,1735474240804,-500.0,9.797e-05,2]
[347025954,1735474240814,-14778.82,9.797e-05,2]
[347025955,1735474240825,-469.17515508,9.797e-05,2]
[347025956,1735474240835,-500.0,9.797e-05,2]
[347025957,1735474240844,-500.0,9.797e-05,2]
[347025958,1735474240854,-500.0,9.797e-05,2]
[347025959,1735474240863,-500.0,9.797e-05,2]
[347025960,1735474240872,-500.0,9.797e-05,2]
[347025961,1735474240881,-500.0,9.797e-05,2]
[347025962,1735474240891,-500.0,9.797e-05,2]
[347025963,1735474240900,-723.88,9.797e-05,2]
[347025964,1735474240910,-500.0,9.797e-05,2]
[347025965,1735474240920,-500.0,9.797e-05,2]
[347025966,1735474240929,-500.0,9.797e-05,2]
[347025967,1735474240938,-630.41,9.797e-05,2]
[347025968,1735474240947,-500.0,9.797e-05,2]
[347025969,1735474240957,-581.51,9.797e-05,2]
[347025970,1735474240967,-1465.98,9.797e-05,2]
[347025971,1735474240977,-500.0,9.797e-05,2]
[347025972,1735474240992,-500.0,9.797e-05,2]
[347025973,1735474241005,-500.0,9.797e-05,2]
[347025974,1735474241015,-188.76412642,9.797e-05,2]
[347025975,1735474241026,-500.0,9.797e-05,2]
[347025976,1735474241036,-500.0,9.797e-05,2]
[347025977,1735474241045,-500.0,9.797e-05,2]
[347025978,1735474241054,-500.0,9.797e-05,2]
[347025979,1735474241064,-530.06,9.797e-05,2]
[347025980,1735474241073,-161.88,9.797e-05,2]
[347025981,1735474241082,-500.0,9.797e-05,2]
[347025982,1735474241092,-500.0,9.797e-05,2]
[347025983,1735474241101,-500.0,9.797e-05,2]
[347025984,1735474241110,-778.47,9.797e-05,2]
[347025985,1735474241120,-500.0,9.797e-05,2]
[347025986,1735474241129,-500.0,9.797e-05,2]
[347025987,1735474241139,-500.0,9.797e-05,2]
[347025988,1735474241148,-507.48,9.797e-05,2]
[347025989,1735474241158,-350.98004303,9.797e-05,2]
[347025990,1735474241176,-500.0,9.797e-05,2]
[347025991,1735474241188,-500.0,9.797e-05,2]
[347025992,1735474241198,-500.0,9.797e-05,2]
[347025993,1735474241208,-500.0,9.797e-05,2]
[347025994,1735474241218,-500.0,9.797e-05,2]
[347025995,1735474241228,-500.0,9.797e-05,2]
[347025996,1735474241238,-500.0,9.797e-05,2]
[347025997,1735474241248,-500.0,9.797e-05,2]
[347025998,1735474241257,-500.0,9.797e-05,2]
[347025999,1735474241267,-596.1,9.797e-05,2]
[347026000,1735474241276,-500.0,9.797e-05,2]
[347026001,1735474241286,-500.0,9.798e-05,2]
[347026002,1735474241295,-500.0,9.798e-05,2]
[347026003,1735474241305,-500.0,9.798e-05,2]
[347026004,1735474241314,-500.0,9.798e-05,2]
[347026005,1735474241324,-500.0,9.798e-05,2]
[347026006,1735474241333,-500.0,9.798e-05,2]
[347026007,1735474241342,-500.0,9.798e-05,2]
[347026008,1735474241352,-500.0,9.798e-05,2]
[347026009,1735474241361,-500.0,9.798e-05,2]
[347026010,1735474241371,-500.0,9.798e-05,2]
[347026011,1735474241380,-500.0,9.798e-05,2]
[347026012,1735474241390,-550.69777991,9.798e-05,2]
[347026013,1735474241400,-500.0,9.798e-05,2]
[347026014,1735474241409,-500.0,9.798e-05,2]
[347026015,1735474241419,-500.0,9.798e-05,2]
[347026016,1735474241428,-500.0,9.798e-05,2]
[347026017,1735474241438,-500.0,9.798e-05,2]
[347026018,1735474241447,-500.0,9.798e-05,2]
[347026019,1735474241457,-1874.55,9.798e-05,2]
[347026020,1735474241466,-500.0,9.798e-05,2]
[347026021,1735474241475,-500.0,9.798e-05,2]
[347026022,1735474241485,-500.0,9.798e-05,2]
[347026023,1735474241494,-500.0,9.798e-05,2]
[347026024,1735474241503,-500.0,9.798e-05,2]
[347026025,1735474241513,-500.0,9.798e-05,2]
[347026026,1735474241522,-500.0,9.798e-05,2]
[347026027,1735474241532,-500.005427,9.798e-05,2]
[347026028,1735474241541,-970.15,9.798e-05,2]
[347026029,1735474241550,-500.0,9.798e-05,2]
[347026030,1735474241560,-500.0,9.798e-05,2]
[347026031,1735474241569,-500.0,9.8e-05,2]
[347026032,1735474241578,-500.0,9.801e-05,2]
[347026033,1735474241587,-3460.74,9.801e-05,2]
[347026034,1735474241596,-3670.48,9.802e-05,2]
[347026035,1735474241605,-970.15,9.803e-05,2]
[347026036,1735474241614,-970.15,9.811e-05,2]
[347026037,1735474241624,-666.0,9.972e-05,2]
[347026038,1735474241633,-987.39105526,0.0001004,2]
[347026039,1735474241642,-500.0,0.0001007,2]
[347026040,1735474241651,-1284.79,0.0001007,2]
[347026041,1735474241660,-522.28,0.0001007,2]
[347026042,1735474241669,-500.0,0.00010071,2]
[347026043,1735474241678,-500.0,0.00010071,2]
[347026044,1735474241688,-500.0,0.00010071,2]
[347026045,1735474241697,-500.0,0.00010071,2]
[347026046,1735474241706,-627.76,0.00010071,2]
[347026047,1735474241715,-500.0,0.00010071,2]
[347026048,1735474241725,-500.0,0.00010071,2]
[347026049,1735474241734,-500.0,0.00010071,2]
[347026050,1735474241743,-500.0,0.00010071,2]
[347026051,1735474241752,-500.0,0.00010071,2]
[347026052,1735474241766,-500.0,0.00010071,2]
[347026053,1735474241775,-500.0,0.00010071,2]
[347026054,1735474241785,-500.0,0.00010071,2]
[347026055,1735474241795,-500.0,0.00010071,2]
[347026056,1735474241806,-14778.82,0.00010071,2]
[347026057,1735474241816,-500.0,0.00010071,2]
[347026058,1735474241825,-500.0,0.00010071,2]
[347026059,1735474241834,-500.0,0.00010071,2]
[347026060,1735474241843,-500.0,0.00010071,2]
[347026061,1735474241853,-500.0,0.00010071,2]
[347026062,1735474241862,-500.0,0.00010071,2]
[347026063,1735474241871,-500.0,0.00010071,2]
[347026064,1735474241881,-723.88,0.00010071,2]
[347026065,1735474241890,-500.0,0.00010071,2]
[347026066,1735474241899,-500.0,0.00010071,2]
[347026067,1735474241909,-500.0,0.00010071,2]
[347026068,1735474241918,-630.41,0.00010071,2]
[347026069,1735474241927,-500.0,0.00010071,2]
[347026070,1735474241936,-581.51,0.00010071,2]
[347026071,1735474241946,-1465.98,0.00010071,2]
[347026072,1735474241955,-500.0,0.00010071,2]
[347026073,1735474241964,-500.0,0.00010071,2]
[347026074,1735474241975,-500.0,0.00010071,2]
[347026075,1735474241985,-500.0,0.00010071,2]
[347026076,1735474241994,-500.0,0.00010071,2]
[347026077,1735474242004,-500.0,0.00010071,2]
[347026078,1735474242013,-500.0,0.00010071,2]
[347026079,1735474242023,-530.06,0.00010071,2]
[347026080,1735474242033,-500.0,0.00010071,2]
[347026081,1735474242042,-500.0,0.00010071,2]
[347026082,1735474242051,-500.0,0.00010071,2]
[347026083,1735474242061,-778.47,0.00010071,2]
[347026084,1735474242070,-500.0,0.00010071,2]
[347026085,1735474242080,-500.0,0.00010071,2]
[347026086,1735474242089,-500.0,0.00010071,2]
[347026087,1735474242098,-507.48,0.00010071,2]
[347026088,1735474242108,-500.0,0.00010071,2]
[347026089,1735474242117,-500.0,0.00010071,2]
[347026090,1735474242127,-500.0,0.00010071,2]
[347026091,1735474242137,-328.63,0.00010071,2]
[347026092,1735474242146,-500.0,0.00010071,2]
[347026093,1735474242156,-500.0,0.00010071,2]
[347026094,1735474242166,-500.0,0.00010071,2]
[347026095,1735474242175,-476.07000369,0.00010071,2]
[347026096,1735474242184,-500.0,0.00010071,2]
[347026097,1735474242194,-596.1,0.00010071,2]
[347026098,1735474242204,-500.0,0.00010071,2]
[347026099,1735474242213,-500.0,0.00010072,2]
[347026100,1735474242225,-500.0,0.00010072,2]
[347026101,1735474242234,-500.0,0.00010072,2]
[347026102,1735474242243,-562.68130801,0.00010072,2]
[347026103,1735474242253,-500.0,0.00010072,2]
[347026104,1735474242262,-500.0,0.00010072,2]
[347026105,1735474242271,-500.0,0.00010072,2]
[347026106,1735474242281,-500.0,0.00010072,2]
[347026107,1735474242290,-500.0,0.00010072,2]
[347026108,1735474242299,-500.0,0.00010072,2]
[347026109,1735474242309,-500.0,0.00010072,2]
[347026110,1735474242318,-500.0,0.00010072,2]
[347026111,1735474242328,-500.0,0.00010072,2]
[347026112,1735474242337,-392.97445206,0.00010072,2]
[347026113,1735474242347,-1874.55,0.00010072,2]
[347026114,1735474242356,-500.0,0.00010072,2]
[347026116,1735474242365,-500.0,0.00010072,2]
[347026117,1735474242375,-500.0,0.00010072,2]
[347026118,1735474242384,-500.0,0.00010072,2]
[347026119,1735474242395,-500.0,0.00010072,2]
[347026120,1735474242404,-500.0,0.00010072,2]
[347026121,1735474242414,-500.0,0.00010072,2]
[347026122,1735474242424,-500.0,0.00010072,2]
[347026123,1735474242433,-500.0,0.00010072,2]
[347026124,1735474242443,-970.15,0.00010074,2]
[347026125,1735474242453,-500.0,0.00010074,2]
[347026126,1735474242463,-500.0,0.00010075,2]
[347026127,1735474242472,-3460.74,0.00010075,2]
[347026128,1735474242482,-3670.48,0.00010076,2]
[347026129,1735474242491,-420.0,0.00010173,2]
[347026130,1735474242501,-500.0,0.00010344,2]
[347026131,1735474242510,-1284.79,0.00010344,2]
[347026133,1735474242519,-522.28,0.00010344,2]
[347026134,1735474242529,-500.0,0.00010345,2]
[347026135,1735474242538,-500.0,0.00010345,2]
[347026142,1735474242547,-500.0,0.00010345,2]
[347026144,1735474242649,-500.0,0.00010345,2]
[347026146,1735474242659,-500.0,0.00010345,2]
[347026148,1735474242668,-500.0,0.00010345,2]
[347026150,1735474242678,-500.0,0.00010345,2]
[347026152,1735474242687,-355.34957742,0.00010345,2]
[347026153,1735474242697,-500.0,0.00010345,2]
[347026155,1735474242706,-500.0,0.00010345,2]
[347026157,1735474242715,-500.0,0.00010345,2]
[347026159,1735474242725,-14778.82,0.00010345,2]
[347026161,1735474242734,-500.0,0.00010345,2]
[347026162,1735474242743,-500.0,0.00010345,2]
[347026163,1735474242752,-500.0,0.00010345,2]
[347026165,1735474242764,-500.0,0.00010345,2]
[347026167,1735474242774,-500.0,0.00010345,2]
[347026169,1735474242783,-596.20301541,0.00010345,2]
[347026171,1735474242792,-500.0,0.00010345,2]
[347026173,1735474242802,-723.88,0.00010345,2]
[347026175,1735474242811,-500.0,0.00010345,2]
[347026177,1735474242819,-500.0,0.00010345,2]
[347026178,1735474242829,-500.0,0.00010345,2]
[347026179,1735474242838,-630.41,0.00010345,2]
[347026181,1735474242847,-500.0,0.00010345,2]
[347026183,1735474242856,-581.51,0.00010345,2]
[347026185,1735474242865,-1465.98,0.00010345,2]
[347026187,1735474242875,-500.0,0.00010345,2]
[347026188,1735474242884,-500.0,0.00010345,2]
[347026190,1735474242893,-500.0,0.00010345,2]
[347026192,1735474242902,-500.0,0.00010345,2]
[347026194,1735474242911,-500.0,0.00010345,2]
[347026196,1735474242921,-500.0,0.00010345,2]
[347026197,1735474242930,-500.0,0.00010345,2]
[347026198,1735474242940,-530.06,0.00010345,2]
[347026199,1735474242949,-500.0,0.00010345,2]
[347026200,1735474242958,-500.0,0.00010345,2]
[347026201,1735474242967,-500.0,0.00010345,2]
[347026202,1735474242976,-778.47,0.00010345,2]
[347026203,1735474242985,-500.0,0.00010345,2]
[347026204,1735474242994,-213.62788786,0.00010345,2]
[347026205,1735474243004,-500.0,0.00010345,2]
[347026206,1735474243013,-507.48,0.00010345,2]
[347026207,1735474243022,-500.0,0.00010345,2]
[347026208,1735474243032,-500.0,0.00010345,2]
[347026209,1735474243041,-245.3991037,0.00010345,2]
[347026210,1735474243050,-500.0,0.00010345,2]
[347026211,1735474243060,-500.0,0.00010345,2]
[347026212,1735474243069,-500.0,0.00010345,2]
[347026213,1735474243078,-500.0,0.00010345,2]
[347026214,1735474243088,-596.1,0.00010345,2]
[347026215,1735474243097,-401.5802367,0.00010345,2]
[347026216,1735474243107,-302.04588257,0.00010346,2]
[347026217,1735474243116,-500.0,0.00010346,2]
[347026218,1735474243124,-500.0,0.00010346,2]
[347026219,1735474243133,-500.0,0.00010346,2]
[347026220,1735474243143,-500.0,0.00010346,2]
[347026221,1735474243152,-187.44,0.00010346,2]
[347026222,1735474243161,-505.58,0.00010346,2]
[347026223,1735474243171,-500.0,0.00010346,2]
[347026224,1735474243180,-500.0,0.00010346,2]
[347026225,1735474243189,-385.1882697,0.00010346,2]
[347026226,1735474243198,-348.88489242,0.00010346,2]
[347026227,1735474243208,-1874.55,0.00010346,2]
[347026228,1735474243217,-331.94520881,0.00010346,2]
[347026229,1735474243227,-500.0,0.00010346,2]
[347026230,1735474243237,-500.0,0.00010346,2]
[347026231,1735474243246,-500.0,0.00010346,2]
[347026232,1735474243255,-500.0,0.00010346,2]
[347026233,1735474243264,-500.0,0.00010346,2]
[347026234,1735474243273,-500.0,0.00010346,2]
[347026235,1735474243283,-970.15,0.00010346,2]
[347026236,1735474243292,-500.0,0.00010346,2]
[347026237,1735474243301,-500.0,0.00010346,2]
[347026238,1735474243310,-500.0,0.00010348,2]
[347026239,1735474243319,-970.15,0.00010349,2]
[347026240,1735474243329,-500.0,0.00010349,2]
[347026241,1735474243338,-3460.74,0.00010349,2]
[347026242,1735474243348,-3670.48,0.0001035,2]
[347026243,1735474243358,-250.0,0.00010411,2]
[347026244,1735474243368,-7640.77159283,0.0001052,2]
[347026245,1735474243378,-500.0,0.00010618,2]
[347026246,1735474243387,-1284.79,0.00010618,2]
[347026247,1735474243397,-522.28,0.00010618,2]
[347026248,1735474243407,-500.0,0.00010619,2]
[347026249,1735474243416,-500.0,0.00010619,2]
[347026250,1735474243427,-500.0,0.00010619,2]
[347026251,1735474243436,-500.0,0.00010619,2]
[347026252,1735474243445,-500.0,0.00010619,2]
[347026253,1735474243455,-500.0,0.00010619,2]
[347026254,1735474243465,-500.0,0.00010619,2]
[347026255,1735474243475,-500.0,0.00010619,2]
[347026256,1735474243484,-500.0,0.00010619,2]
[347026257,1735474243493,-14778.82,0.00010619,2]
[347026258,1735474243503,-500.0,0.00010619,2]
[347026259,1735474243512,-500.0,0.00010619,2]
[347026260,1735474243522,-500.0,0.00010619,2]
[347026261,1735474243531,-500.0,0.00010619,2]
[347026262,1735474243542,-500.0,0.00010619,2]
[347026263,1735474243551,-500.0,0.00010619,2]
[347026264,1735474243562,-723.88,0.00010619,2]
[347026265,1735474243572,-445.88655085,0.00010619,2]
[347026266,1735474243582,-500.0,0.00010619,2]
[347026267,1735474243591,-630.41,0.00010619,2]
[347026268,1735474243601,-500.0,0.00010619,2]
[347026269,1735474243610,-581.51,0.00010619,2]
[347026270,1735474243619,-1465.98,0.00010619,2]
[347026271,1735474243629,-500.0,0.00010619,2]
[347026272,1735474243639,-500.0,0.00010619,2]
[347026273,1735474243648,-401.32235031,0.00010619,2]
[347026274,1735474243657,-535.3919373,0.00010619,2]
[347026275,1735474243667,-500.0,0.00010619,2]
[347026276,1735474243676,-530.06,0.00010619,2]
[347026277,1735474243685,-255.64,0.00010619,2]
[347026278,1735474243695,-500.0,0.00010619,2]
[347026279,1735474243704,-500.0,0.00010619,2]
[347026280,1735474243713,-778.47,0.00010619,2]
[347026281,1735474243723,-500.0,0.00010619,2]
[347026282,1735474243733,-500.0,0.00010619,2]
[347026283,1735474243742,-507.48,0.00010619,2]
[347026284,1735474243751,-500.0,0.00010619,2]
[347026285,1735474243763,-500.0,0.00010619,2]
[347026286,1735474243772,-500.0,0.00010619,2]
[347026287,1735474243780,-500.0,0.00010619,2]
[347026288,1735474243790,-500.0,0.00010619,2]
[347026289,1735474243798,-500.0,0.00010619,2]
[347026290,1735474243808,-596.1,0.00010619,2]
[347026291,1735474243819,-500.0,0.0001062,2]
[347026292,1735474243827,-500.0,0.0001062,2]
[347026293,1735474243837,-500.0,0.0001062,2]
[347026294,1735474243846,-500.0,0.0001062,2]
[347026295,1735474243855,-496.28634091,0.0001062,2]
[347026296,1735474243865,-1874.55,0.0001062,2]
[347026297,1735474243874,-500.0,0.0001062,2]
[347026298,1735474243883,-500.0,0.0001062,2]
[347026299,1735474243892,-500.0,0.0001062,2]
[347026300,1735474243901,-500.0,0.0001062,2]
[347026301,1735474243910,-500.0,0.0001062,2]
[347026302,1735474243918,-970.15,0.0001062,2]
[347026303,1735474243927,-500.0,0.0001062,2]
[347026304,1735474243936,-500.0,0.0001062,2]
[347026305,1735474243945,-500.0,0.00010622,2]
[347026306,1735474243954,-500.0,0.00010623,2]
[347026307,1735474243963,-3670.48,0.00010624,2]
[347026308,1735474243971,-987.39105526,0.00010656,2]
[347026309,1735474243980,-500.0,0.00010892,2]
[347026310,1735474243989,-1284.79,0.00010892,2]
[347026311,1735474243998,-522.28,0.00010892,2]
[347026312,1735474244008,-500.0,0.00010893,2]
[347026313,1735474244017,-500.0,0.00010893,2]
[347026314,1735474244025,-500.0,0.00010893,2]
[347026315,1735474244034,-500.0,0.00010893,2]
[347026316,1735474244043,-500.0,0.00010893,2]
[347026317,1735474244051,-500.0,0.00010893,2]
[347026318,1735474244060,-500.0,0.00010893,2]
[347026319,1735474244069,-14778.82,0.00010893,2]
[347026320,1735474244077,-500.0,0.00010893,2]
[347026321,1735474244085,-500.0,0.00010893,2]
[347026322,1735474244094,-500.0,0.00010893,2]
[347026323,1735474244103,-500.0,0.00010893,2]
[347026324,1735474244112,-500.0,0.00010893,2]
[347026325,1735474244121,-500.0,0.00010893,2]
[347026326,1735474244130,-723.88,0.00010893,2]
[347026327,1735474244138,-500.0,0.00010893,2]
[347026328,1735474244147,-630.41,0.00010893,2]
[347026329,1735474244156,-500.0,0.00010893,2]
[347026330,1735474244166,-581.51,0.00010893,2]
[347026331,1735474244175,-1465.98,0.00010893,2]
[347026332,1735474244185,-500.0,0.00010893,2]
[347026333,1735474244194,-500.0,0.00010893,2]
[347026334,1735474244204,-500.0,0.00010893,2]
[347026335,1735474244213,-530.06,0.00010893,2]
[347026336,1735474244223,-500.0,0.00010893,2]
[347026337,1735474244232,-392.34012609,0.00010893,2]
[347026338,1735474244241,-778.47,0.00010893,2]
[347026339,1735474244251,-500.0,0.00010893,2]
[347026340,1735474244260,-500.0,0.00010893,2]
[347026341,1735474244269,-507.48,0.00010893,2]
[347026342,1735474244279,-500.0,0.00010893,2]
[347026343,1735474244288,-500.0,0.00010893,2]
[347026344,1735474244297,-500.0,0.00010893,2]
[347026345,1735474244307,-247.08959609,0.00010893,2]
[347026346,1735474244318,-500.0,0.00010893,2]
[347026347,1735474244328,-500.0,0.00010893,2]
[347026348,1735474244337,-596.1,0.00010893,2]
[347026349,1735474244346,-500.0,0.00010894,2]
[347026350,1735474244355,-500.0,0.00010894,2]
[347026351,1735474244364,-529.47822571,0.00010894,2]
[347026352,1735474244373,-500.0,0.00010894,2]
[347026353,1735474244382,-1874.55,0.00010894,2]
[347026354,1735474244391,-500.0,0.00010894,2]
[347026355,1735474244401,-500.0,0.00010894,2]
[347026356,1735474244410,-500.0,0.00010894,2]
[347026357,1735474244420,-500.0,0.00010894,2]
[347026358,1735474244430,-500.0,0.00010894,2]
[347026359,1735474244439,-970.15,0.00010894,2]
[347026360,1735474244448,-500.0,0.00010894,2]
[347026361,1735474244519,-500.0,0.00010896,2]
[347026362,1735474244535,-970.15,0.00010897,2]
[347026363,1735474244544,-500.0,0.00010897,2]
[347026364,1735474244554,-3670.48,0.00010898,2]
[347026365,1735474244563,-500.0,0.00011166,2]
[347026366,1735474244573,-1284.79,0.00011166,2]
[347026367,1735474244583,-522.28,0.00011166,2]
[347026368,1735474244592,-500.0,0.00011167,2]
[347026369,1735474244601,-500.0,0.00011167,2]
[347026370,1735474244610,-500.0,0.00011167,2]
[347026371,1735474244620,-500.0,0.00011167,2]
[347026372,1735474244630,-500.0,0.00011167,2]
[347026373,1735474244639,-155.04,0.00011167,2]
[347026374,1735474244648,-14778.82,0.00011167,2]
[347026375,1735474244658,-500.0,0.00011167,2]
[347026376,1735474244667,-500.0,0.00011167,2]
[347026377,1735474244677,-500.0,0.00011167,2]
[347026378,1735474244687,-500.0,0.00011167,2]
[347026379,1735474244696,-500.0,0.00011167,2]
[347026380,1735474244705,-500.0,0.00011167,2]
[347026381,1735474244715,-723.88,0.00011167,2]
[347026382,1735474244725,-500.0,0.00011167,2]
[347026383,1735474244734,-630.41,0.00011167,2]
[347026384,1735474244743,-581.51,0.00011167,2]
[347026385,1735474244753,-194.75060377,0.00011167,2]
[347026386,1735474244767,-1465.98,0.00011167,2]
[347026387,1735474244776,-611.96981022,0.00011167,2]
[347026388,1735474244785,-500.0,0.00011167,2]
[347026389,1735474244794,-500.0,0.00011167,2]
[347026390,1735474244803,-530.06,0.00011167,2]
[347026391,1735474244813,-500.0,0.00011167,2]
[347026392,1735474244822,-778.47,0.00011167,2]
[347026393,1735474244832,-500.0,0.00011167,2]
[347026394,1735474244841,-500.0,0.00011167,2]
[347026395,1735474244850,-507.48,0.00011167,2]
[347026396,1735474244859,-500.0,0.00011167,2]
[347026397,1735474244869,-500.0,0.00011167,2]
[347026398,1735474244878,-317.60313441,0.00011167,2]
[347026399,1735474244887,-500.0,0.00011167,2]
[347026400,1735474244897,-500.0,0.00011167,2]
[347026401,1735474244906,-596.1,0.00011167,2]
[347026402,1735474244915,-314.54213832,0.00011168,2]
[347026403,1735474244925,-500.0,0.00011168,2]
[347026404,1735474244934,-500.0,0.00011168,2]
[347026405,1735474244945,-1874.55,0.00011168,2]
[347026406,1735474244955,-500.0,0.00011168,2]
[347026407,1735474244964,-500.0,0.00011168,2]
[347026408,1735474244973,-500.0,0.00011168,2]
[347026409,1735474244983,-500.0,0.00011168,2]
[347026410,1735474244992,-500.0,0.00011168,2]
[347026411,1735474245002,-970.15,0.00011168,2]
[347026412,1735474245011,-500.0,0.00011168,2]
[347026413,1735474245021,-500.0,0.0001117,2]
[347026414,1735474245030,-500.0,0.00011171,2]
[347026415,1735474245039,-3670.48,0.00011172,2]
[347026416,1735474245048,-970.15,0.00011179,2]
[347026417,1735474245058,-587.0,0.0001119,2]
[347026418,1735474245067,-987.39105526,0.00011273,2]
[347026419,1735474245077,-629.394,0.000114,2]
[347026420,1735474245086,-500.0,0.0001144,2]
[347026421,1735474245095,-1284.79,0.0001144,2]
[347026422,1735474245104,-522.28,0.0001144,2]
[347026423,1735474245113,-391.659,0.00011441,2]